bitfinex/quotes_BTCUSD_20240821
["timestamp","ask_amount","ask_price","bid_price","bid_amount"]
[1724259809963,2.73728919,59875.0,59874.0,4e-07]
[1724259810897,2.73888761,59875.0,59874.0,4e-07]
[1724259811340,2.12318141,59875.0,59874.0,4e-07]
[1724259811782,1.95917843,59875.0,59874.0,4e-07]
[1724259812224,1.95917843,59875.0,59874.0,0.00040198]
[1724259812225,1.85917843,59875.0,59874.0,0.00040198]
[1724259812441,1.23694943,59875.0,59874.0,0.00040198]
[1724259812893,1.23694943,59875.0,59874.0,0.02010436]
[1724259813125,1.23694943,59875.0,59874.0,0.00040198]
[1724259813434,1.23694943,59875.0,59874.0,0.02010436]
[1724259813656,1.33694943,59875.0,59874.0,0.00040198]
[1724259813900,1.33694943,59875.0,59874.0,4e-07]
[1724259814121,1.47140875,59875.0,59874.0,0.01970278]
[1724259814335,1.47140875,59875.0,59874.0,4e-07]
[1724259814570,1.75960875,59875.0,59874.0,4e-07]
[1724259815006,2.09363775,59875.0,59874.0,4e-07]
[1724259815233,2.11663775,59875.0,59874.0,4e-07]
[1724259815647,1.98217843,59875.0,59874.0,4e-07]
[1724259821917,1.98217843,59875.0,59874.0,0.1823004]
[1724259821918,1.33694943,59875.0,59874.0,0.1823004]
[1724259823219,1.29594943,59875.0,59874.0,0.1823004]
[1724259823472,1.32094943,59875.0,59874.0,0.1823004]
[1724259823990,1.45380875,59875.0,59874.0,0.1823004]
[1724259823992,1.67797843,59875.0,59874.0,4e-07]
[1724259824730,1.70411974,59875.0,59874.0,4e-07]
[1724259825209,1.37009074,59875.0,59874.0,4e-07]
[1724259826167,1.70411974,59875.0,59874.0,4e-07]
[1724259826399,1.37009074,59875.0,59874.0,4e-07]
[1724259828148,1.34394943,59875.0,59874.0,4e-07]
[1724259828381,1.67797843,59875.0,59874.0,4e-07]
[1724259828630,1.82517843,59875.0,59874.0,4e-07]
[1724259828873,2.01087843,59875.0,59874.0,4e-07]
[1724259830368,2.03701953,59875.0,59874.0,4e-07]
[1724259831089,2.20302251,59875.0,59874.0,4e-07]
[1724259831308,1.86812251,59875.0,59874.0,4e-07]
[1724259832573,2.03210129,59875.0,59874.0,4e-07]
[1724259833267,1.86812251,59875.0,59874.0,4e-07]
[1724259836249,1.37009053,59875.0,59874.0,4e-07]
[1724259836469,1.34709053,59875.0,59874.0,0.1431004]
[1724259836733,1.68111953,59875.0,59874.0,4e-07]
[1724259836959,1.32094943,59875.0,59874.0,4e-07]
[1724259837408,1.32094943,59875.0,59874.0,0.02009118]
[1724259837648,1.48492821,59875.0,59874.0,4e-07]
[1724259838126,1.32094943,59875.0,59874.0,4e-07]
[1724259838383,1.34708955,59875.0,59874.0,4e-07]
[1724259838628,1.48495241,59875.0,59874.0,0.02009118]
[1724259838840,1.53409255,59875.0,59874.0,4e-07]
[1724259839068,1.57340794,59875.0,59874.0,4e-07]
[1724259839339,1.86812155,59875.0,59874.0,4e-07]
[1724259840527,1.34708957,59875.0,59874.0,4e-07]
[1724259841257,1.33708957,59875.0,59874.0,4e-07]
[1724259843922,1.94062155,59875.0,59874.0,4e-07]
[1724259845119,1.36008957,59875.0,59874.0,4e-07]
[1724259845619,1.21094943,59875.0,59874.0,0.1529004]
[1724259850240,1.52528908,59875.0,59874.0,4e-07]
[1724259858234,2.02331605,59875.0,59874.0,4e-07]
[1724259858738,2.18731903,59875.0,59874.0,4e-07]
[1724259858962,2.62394645,59875.0,59874.0,4e-07]
[1724259859189,2.78992523,59875.0,59874.0,4e-07]
[1724259859659,2.62594645,59875.0,59874.0,4e-07]
[1724259859873,2.62594645,59875.0,59871.0,0.0002]
[1724259859874,0.31402042,59872.0,59871.0,0.0002]
[1724259860112,0.83820805,59872.0,59871.0,0.0002]
[1724259860340,0.83820805,59872.0,59851.0,0.0829]
[1724259860341,0.933727,59865.0,59851.0,0.0002]
[1724259860557,1.79203963,59865.0,59851.0,0.0002]
[1724259860785,2.37446722,59865.0,59851.0,0.0002]
[1724259861014,2.73535107,59865.0,59851.0,0.0002]
[1724259861232,2.60941006,59865.0,59851.0,0.0002]
[1724259861686,2.60941006,59865.0,59851.0,0.00060158]
[1724259861918,2.60741006,59865.0,59851.0,0.00060158]
[1724259862140,2.27332506,59865.0,59856.0,0.0827]
[1724259862890,2.28115324,59865.0,59856.0,0.0827]
[1724259863135,2.28115324,59865.0,59856.0,0.08310158]
[1724259863587,2.29515324,59865.0,59856.0,0.08310158]
[1724259863816,2.29515324,59865.0,59859.0,0.00040158]
[1724259864046,2.47313202,59865.0,59859.0,0.00040158]
[1724259864270,2.47313202,59865.0,59856.0,0.08310158]
[1724259864492,2.30915324,59865.0,59852.0,0.0827]
[1724259864718,2.64523824,59865.0,59852.0,0.0827]
[1724259865658,2.64323824,59865.0,59852.0,0.0827]
[1724259867931,2.64423824,59865.0,59852.0,0.0827]
[1724259868952,2.64423824,59865.0,59851.0,0.0002]
[1724259869718,2.64323824,59865.0,59851.0,0.0002]
[1724259870236,2.77210616,59865.0,59851.0,0.0002]
[1724259870488,2.64323824,59865.0,59851.0,0.0002]
[1724259871674,2.64423824,59865.0,59851.0,0.0002]
[1724259872153,2.64423824,59865.0,59853.0,0.00040158]
[1724259872389,2.64423824,59865.0,59851.0,0.0002]
[1724259873765,1.791906,59852.0,59851.0,0.0002]
[1724259873976,1.929806,59852.0,59851.0,0.0002]
[1724259874195,1.891906,59852.0,59851.0,0.0002]
[1724259874417,1.914906,59852.0,59851.0,0.0002]
[1724259874647,1.94110979,59852.0,59851.0,0.0002]
[1724259876033,1.95410979,59852.0,59851.0,0.0011053]
[1724259876530,1.96810979,59852.0,59851.0,0.0011053]
[1724259877411,2.11130979,59852.0,59851.0,0.0011053]
[1724259878127,2.11909661,59852.0,59851.0,0.0011053]
[1724259878345,2.19197157,59852.0,59851.0,0.0011053]
[1724259878832,2.11909661,59852.0,59851.0,0.0011053]
[1724259880484,2.28309959,59852.0,59851.0,0.0011053]
[1724259881188,0.455334,59832.0,59828.0,0.00011]
[1724259881417,1.268372,59832.0,59828.0,0.00011]
[1724259881676,1.602641,59832.0,59831.0,0.02093766]
[1724259881940,1.602641,59832.0,59831.0,0.0002]
[1724259881941,1.96311923,59832.0,59831.0,0.0002]
[1724259882402,2.58539121,59832.0,59831.0,0.0002]
[1724259882624,2.58439121,59832.0,59831.0,0.0002]
[1724259882856,2.25012221,59832.0,59831.0,0.0002]
[1724259883102,2.11662221,59832.0,59831.0,0.0002]
[1724259884020,2.12762221,59832.0,59831.0,0.0002]
[1724259884247,2.11662221,59832.0,59831.0,0.0002]
[1724259884464,2.11962221,59832.0,59831.0,0.0002]
[1724259884684,2.127451,59832.0,59831.0,0.0002]
[1724259884911,2.141451,59832.0,59831.0,0.0002]
[1724259885156,1.64317902,59832.0,59831.0,0.0002]
[1724259885607,0.05420923,59832.0,59831.0,0.47173998]
[1724259886089,0.05420923,59832.0,59831.0,0.30460298]
[1724259886090,0.04020923,59832.0,59831.0,0.30460298]
[1724259886327,0.04020923,59832.0,59831.0,0.80601398]
[1724259886554,0.04420923,59832.0,59831.0,0.47173998]
[1724259886802,0.03020923,59832.0,59831.0,0.47173998]
[1724259887330,0.03320923,59832.0,59831.0,0.47214156]
[1724259887588,0.004,59832.0,59831.0,0.80641556]
[1724259887823,0.004,59832.0,59831.0,1.14068956]
[1724259887824,0.001,59832.0,59831.0,1.14068956]
[1724259888089,0.167109,59841.0,59840.0,0.00040158]
[1724259888556,0.0340847,59844.0,59842.0,0.00040158]
[1724259888557,0.02620893,59844.0,59842.0,0.00040158]
[1724259888788,0.52751193,59844.0,59843.0,0.00040158]
[1724259889476,0.52710987,59844.0,59843.0,0.00040158]
[1724259889935,0.19690787,59844.0,59843.0,0.00040158]
[1724259890676,0.53110987,59844.0,59843.0,0.00040158]
[1724259890938,0.19690787,59844.0,59843.0,0.00040158]
[1724259891175,0.19290787,59844.0,59843.0,0.00040158]
[1724259891425,0.19290787,59844.0,59843.0,0.00140158]
[1724259892195,0.02580687,59844.0,59843.0,0.00140158]
[1724259892917,0.34191414,59851.0,59846.0,0.00040158]
[1724259892918,0.334167,59851.0,59846.0,0.00040158]
[1724259893151,0.334141,59855.0,59854.0,0.00040158]
[1724259893152,0.501211,59855.0,59854.0,0.00040158]
[1724259893398,0.50121,59855.0,59854.0,0.00040158]
[1724259894369,0.83535,59855.0,59854.0,0.00040158]
[1724259894828,0.83735,59855.0,59854.0,0.00040158]
[1724259895054,0.84035,59855.0,59854.0,0.00040158]
[1724259896750,0.005,59855.0,59854.0,0.06250158]
[1724259897474,0.002,59855.0,59854.0,0.06250158]
[1724259897716,0.167065,59857.0,59856.0,0.00040158]
[1724259897955,0.501194,59857.0,59856.0,0.00040158]
[1724259899191,0.501194,59857.0,59856.0,0.00140158]
[1724259900191,0.501194,59857.0,59856.0,0.00340158]
[1724259900683,0.334098,59863.0,59859.0,0.00040158]
[1724259900981,0.0629,59868.0,59858.0,0.00040158]
[1724259900982,0.167059,59859.0,59858.0,0.00040158]
[1724259901414,0.167056,59860.0,59858.0,0.00040158]
[1724259901655,0.334097,59863.0,59858.0,0.00040158]
[1724259901912,0.334097,59863.0,59862.0,0.00040158]
[1724259901913,0.835242,59863.0,59862.0,0.00040158]
[1724259902145,0.507145,59863.0,59862.0,0.00040158]
[1724259902868,0.841242,59863.0,59862.0,0.00040158]
[1724259903100,0.167064,59858.0,59856.0,0.00040158]
[1724259904116,0.167064,59858.0,59857.0,0.00040158]
[1724259904344,0.167064,59858.0,59856.0,0.00040158]
[1724259904855,0.167064,59858.0,59856.0,0.00140158]
[1724259905111,0.167064,59858.0,59856.0,0.00040158]
[1724259905335,0.168064,59858.0,59856.0,0.00040158]
[1724259905576,0.168064,59858.0,59857.0,0.001]
[1724259905577,0.168062,59858.0,59857.0,0.001]
[1724259905811,0.568486,59858.0,59857.0,0.001]
[1724259906110,1.314834,59858.0,59857.0,0.001]
[1724259906376,1.81296098,59858.0,59857.0,0.001]
[1724259906605,1.83496098,59858.0,59857.0,0.001]
[1724259906834,1.93496098,59858.0,59857.0,0.001]
[1724259907062,0.501277,59847.0,59846.0,0.4752]
[1724259907587,0.835462,59847.0,59846.0,0.49623452]
[1724259908568,0.835462,59847.0,59846.0,0.49823452]
[1724259908773,0.835462,59847.0,59846.0,0.4986361]
[1724259910073,0.835462,59847.0,59846.0,0.0234361]
[1724259910303,0.835462,59847.0,59846.0,0.02303452]
[1724259910537,1.230447,59847.0,59846.0,0.004]
[1724259911310,1.80943498,59847.0,59846.0,0.004]
[1724259911559,2.16861998,59847.0,59846.0,0.004]
[1724259911794,2.29737595,59847.0,59846.0,0.004]
[1724259912262,2.29677753,59847.0,59846.0,0.004]
[1724259912510,2.29677753,59847.0,59846.0,0.0049053]
[1724259912759,2.42829314,59847.0,59831.0,0.0011053]
[1724259913011,1.599041,59832.0,59831.0,0.0011053]
[1724259913506,1.458141,59832.0,59831.0,0.0011053]
[1724259913781,1.169941,59832.0,59831.0,0.0011053]
[1724259914007,1.169941,59832.0,59831.0,0.00250688]
[1724259914248,1.175941,59832.0,59831.0,0.00250688]
[1724259914486,1.169941,59832.0,59831.0,0.00250688]
[1724259914712,1.169941,59832.0,59831.0,0.00150688]
[1724259914976,1.175941,59832.0,59831.0,0.00150688]
[1724259915720,0.841672,59832.0,59831.0,0.00150688]
[1724259916744,0.173134,59832.0,59831.0,0.00150688]
[1724259917005,0.006,59832.0,59831.0,0.80772086]
[1724259917252,0.006,59832.0,59831.0,1.14199486]
[1724259917757,0.006,59832.0,59831.0,0.80772086]
[1724259917985,0.003,59832.0,59831.0,0.80772086]
[1724259918222,0.167121,59837.0,59836.0,0.00040158]
[1724259918452,0.501277,59847.0,59846.0,0.00040158]
[1724259918698,0.835462,59847.0,59846.0,0.00040158]
[1724259919156,0.835505,59844.0,59843.0,0.00040158]
[1724259920956,1.249807,59844.0,59843.0,0.00040158]
[1724259921205,1.249807,59844.0,59838.0,0.00040158]
[1724259921206,0.167115,59839.0,59838.0,0.00040158]
[1724259921459,0.835575,59839.0,59838.0,0.00040158]
[1724259923223,1.169805,59839.0,59838.0,0.00040158]
[1724259923467,1.169805,59839.0,59838.0,0.00140158]
[1724259923704,1.169805,59839.0,59838.0,0.00240158]
[1724259925119,0.835575,59839.0,59838.0,0.00240158]
[1724259928807,1.169805,59839.0,59838.0,0.00240158]
[1724259929513,1.245305,59839.0,59838.0,0.00240158]
[1724259930290,1.330205,59839.0,59838.0,0.002]
[1724259930392,1.169805,59839.0,59838.0,0.002]
[1724259930645,1.169805,59839.0,59838.0,0.00240158]
[1724259930646,0.835575,59839.0,59838.0,0.00240158]
[1724259930879,0.501345,59839.0,59838.0,0.00240158]
[1724259931385,0.835575,59839.0,59838.0,0.00240158]
[1724259931637,0.501345,59839.0,59838.0,0.00140158]
[1724259931871,0.835575,59839.0,59838.0,0.00140158]
[1724259932099,0.167115,59839.0,59838.0,0.00140158]
[1724259932337,0.501345,59839.0,59838.0,0.00040158]
[1724259932870,0.501345,59839.0,59838.0,0.00140158]
[1724259933103,0.167115,59839.0,59838.0,0.00140158]
[1724259933357,0.501345,59839.0,59838.0,0.00240158]
[1724259933612,0.167112,59840.0,59839.0,0.00040158]
[1724259935089,0.167099,59845.0,59844.0,0.00040158]
[1724259935787,0.501295,59845.0,59844.0,0.00040158]
[1724259936474,0.502295,59845.0,59844.0,0.00140158]
[1724259936768,0.502295,59845.0,59844.0,0.66670756]
[1724259936769,0.001,59845.0,59844.0,0.66670756]
[1724259936984,0.001,59845.0,59844.0,0.80640756]
[1724259937895,0.001,59845.0,59844.0,0.47220556]
[1724259938129,0.001,59845.0,59844.0,0.47620556]
[1724259938351,0.001,59845.0,59844.0,0.24680456]
[1724259938591,0.001,59845.0,59844.0,0.41390556]
[1724259938853,0.001,59845.0,59844.0,0.74810756]
[1724259944288,0.001,59845.0,59844.0,0.41390556]
[1724259946161,0.001,59845.0,59844.0,0.74810756]
[1724259946630,0.436922,59857.0,59856.0,0.00040158]
[1724259946853,0.771057,59857.0,59856.0,0.00040158]
[1724259947140,0.835337,59856.0,59855.0,0.00040158]
[1724259948498,0.395324,59858.0,59853.0,0.00040158]
[1724259948499,0.167073,59854.0,59853.0,0.00040158]
[1724259948727,0.501219,59854.0,59853.0,0.00040158]
[1724259949201,0.501219,59854.0,59848.0,0.00040158]
[1724259949202,0.334174,59849.0,59848.0,0.00040158]
[1724259949459,0.835435,59849.0,59848.0,0.00040158]
[1724259951773,0.836435,59849.0,59848.0,0.00640158]
[1724259952571,0.836435,59849.0,59848.0,0.00540158]
[1724259953046,0.836435,59849.0,59848.0,0.005]
[1724259953544,0.837435,59849.0,59848.0,0.011]
[1724259958664,0.837435,59849.0,59848.0,0.01140158]
[1724259969643,0.503261,59849.0,59848.0,0.01140158]
[1724259969888,0.002,59849.0,59848.0,0.34249356]
[1724259970131,0.002,59849.0,59848.0,0.42379356]
[1724259970357,0.002,59849.0,59848.0,0.25670456]
[1724259970597,0.002,59849.0,59848.0,0.17540456]
[1724259970824,0.646561,59849.0,59848.0,0.01140158]
[1724259971310,0.980735,59849.0,59848.0,0.01140158]
[1724259972471,1.314909,59849.0,59848.0,0.011]
[1724259972737,1.34105965,59849.0,59848.0,0.011]
[1724259972958,1.36405965,59849.0,59848.0,0.011]
[1724259973470,1.36265742,59849.0,59848.0,0.006]
[1724259973705,1.36865742,59849.0,59848.0,0.007]
[1724259974156,1.36865742,59849.0,59848.0,0.006]
[1724259974157,1.69683142,59849.0,59848.0,0.006]
[1724259974384,1.69683142,59849.0,59846.0,0.0009053]
[1724259974385,1.169647,59847.0,59846.0,0.0009053]
[1724259974579,1.252347,59847.0,59846.0,0.0009053]
[1724259975786,1.257347,59847.0,59846.0,0.0009053]
[1724259976943,1.262347,59847.0,59846.0,0.0009053]
[1724259981860,1.179647,59847.0,59846.0,0.0009053]
[1724259982314,1.179647,59847.0,59846.0,0.00130688]
[1724259985094,0.511277,59847.0,59846.0,0.08150688]
[1724259985316,0.506277,59847.0,59846.0,0.08150688]
[1724259985564,0.168092,59847.0,59846.0,0.08150688]
[1724259985783,0.002,59847.0,59846.0,0.09535966]
[1724259986005,0.168092,59847.0,59846.0,0.09535966]
[1724259986236,0.16709,59848.0,59847.0,0.00040158]
[1724259986716,0.000823,59849.0,59847.0,0.00040158]
[1724259986946,0.000823,59849.0,59848.0,0.16749058]
[1724259987422,0.000823,59849.0,59848.0,0.21720585]
[1724259987706,0.000823,59849.0,59848.0,0.87704547]
[1724259987936,0.000823,59849.0,59848.0,1.60666874]
[1724259988198,0.000823,59849.0,59848.0,2.06504755]
[1724259988427,0.000823,59849.0,59848.0,1.94375936]
[1724259988654,0.001823,59849.0,59848.0,1.94875936]
[1724259988885,0.000823,59849.0,59848.0,1.96970538]
[1724259989119,0.000823,59849.0,59848.0,1.96670538]
[1724259989346,0.00200001,59849.0,59848.0,1.87323912]
[1724259989573,0.00200001,59849.0,59848.0,2.20741812]
[1724259990062,0.00100001,59849.0,59848.0,2.19941812]
[1724259990315,0.00100001,59849.0,59848.0,2.35056395]
[1724259990569,0.00100001,59849.0,59848.0,2.30141812]
[1724259991042,0.000823,59856.0,59855.0,1.65213158]
[1724259991286,0.000823,59856.0,59855.0,2.335447]
[1724259992252,0.001823,59856.0,59855.0,2.19172119]
[1724259992488,0.002823,59856.0,59855.0,2.19972119]
[1724259992979,0.002823,59856.0,59855.0,2.21714001]
[1724259993218,0.002823,59856.0,59855.0,2.34096378]
[1724259993488,0.002823,59856.0,59855.0,2.316202]
[1724259994192,0.002823,59856.0,59855.0,2.21704143]
[1724259994442,0.002823,59856.0,59855.0,1.55792952]
[1724259994670,0.002823,59856.0,59855.0,0.19582338]
[1724259994919,0.579825,59856.0,59855.0,0.0318204]
[1724259995159,0.24569,59856.0,59855.0,0.0318204]
[1724259995610,0.24369,59856.0,59855.0,0.00040158]
[1724259995857,0.076623,59856.0,59855.0,0.00340158]
[1724259996091,0.641825,59856.0,59855.0,0.00340158]
[1724259996335,0.501244,59851.0,59850.0,0.00040158]
[1724259996821,0.501244,59851.0,59838.0,0.0009053]
[1724259996822,0.501261,59849.0,59848.0,0.00040158]
[1724259997067,0.911362,59847.0,59843.0,0.00040158]
[1724259998287,1.268547,59847.0,59838.0,0.0009053]
[1724259998509,1.338547,59847.0,59838.0,0.0009053]
[1724259998738,1.333547,59847.0,59845.0,0.00040158]
[1724259999187,1.334547,59847.0,59843.0,0.00040158]
[1724259999423,1.49754998,59847.0,59838.0,0.0009053]
[1724259999663,1.93173498,59847.0,59838.0,0.0009053]
[1724260000162,1.93273498,59847.0,59838.0,0.0009053]
[1724260000406,1.93773498,59847.0,59846.0,0.0019053]
[1724260000632,1.93773498,59847.0,59846.0,0.0009053]
[1724260000857,1.93673498,59847.0,59846.0,0.0019053]
[1724260001348,1.93273498,59847.0,59846.0,0.0009053]
[1724260001602,1.94173498,59847.0,59846.0,0.0019053]
[1724260001827,1.93973498,59847.0,59846.0,0.0019053]
[1724260002335,1.93973498,59847.0,59846.0,0.0029053]
[1724260002336,1.94773498,59847.0,59846.0,0.0029053]
[1724260003035,1.94873498,59847.0,59846.0,0.0029053]
[1724260003272,1.94773498,59847.0,59846.0,0.0029053]
[1724260004438,1.94873498,59847.0,59846.0,0.0029053]
[1724260004907,1.94773498,59847.0,59846.0,0.0029053]
[1724260017633,0.617277,59847.0,59846.0,0.0029053]
[1724260017880,0.517277,59847.0,59846.0,0.00330688]
[1724260018341,0.851462,59847.0,59846.0,0.00330688]
[1724260020213,0.016,59847.0,59846.0,0.14120688]
[1724260020479,0.016,59847.0,59846.0,0.80649586]
[1724260020711,0.016,59847.0,59846.0,0.82056834]
[1724260020951,0.016,59847.0,59846.0,0.15527936]
[1724260021187,0.016,59847.0,59846.0,0.15427936]
[1724260021188,0.008,59847.0,59846.0,0.15427936]
[1724260021432,0.50127,59848.0,59847.0,0.00040158]
[1724260021691,0.835449,59848.0,59847.0,0.00040158]
[1724260021923,0.50127,59848.0,59847.0,0.00040158]
[1724260022875,0.50127,59848.0,59846.0,0.0009053]
[1724260022876,0.501277,59847.0,59846.0,0.0009053]
[1724260023340,0.501277,59847.0,59846.0,0.00130688]
[1724260023852,0.007,59848.0,59847.0,0.00040158]
[1724260024125,0.000823,59849.0,59848.0,0.16749058]
[1724260024801,0.000823,59849.0,59848.0,0.00040158]
[1724260025795,0.000823,59849.0,59848.0,0.00340158]
[1724260026030,0.000823,59849.0,59848.0,0.00540158]
[1724260027447,0.000823,59849.0,59848.0,0.17249058]
[1724260027688,0.000823,59849.0,59848.0,0.00540158]
[1724260028698,0.000823,59849.0,59848.0,0.17249058]
[1724260032911,0.000823,59849.0,59848.0,0.00540158]
[1724260033148,0.000823,59849.0,59848.0,0.005]
[1724260033149,1.170432,59849.0,59848.0,0.005]
[1724260033395,0.836258,59849.0,59848.0,0.005]
[1724260034109,1.170432,59849.0,59848.0,0.005]
[1724260034465,1.245432,59849.0,59848.0,0.005]
[1724260034912,0.911258,59849.0,59848.0,0.00540158]
[1724260036538,0.836258,59849.0,59848.0,0.00540158]
[1724260037033,0.16791,59849.0,59848.0,0.00540158]
[1724260037263,0.000823,59849.0,59848.0,0.00540158]
[1724260037485,0.16791,59849.0,59848.0,0.00540158]
[1724260038195,0.502084,59849.0,59848.0,0.00540158]
[1724260039099,0.16791,59849.0,59848.0,0.00540158]
[1724260039313,0.502084,59849.0,59848.0,0.02350699]
[1724260039567,0.16791,59849.0,59848.0,0.02350699]
[1724260039805,0.502084,59849.0,59848.0,0.02350699]
[1724260041372,1.310932,59849.0,59848.0,0.02310541]
[1724260041601,1.768106,59849.0,59848.0,0.02310541]
[1724260041825,1.768106,59849.0,59848.0,0.005]
[1724260042263,1.79425905,59849.0,59848.0,0.005]
[1724260042482,2.29243603,59849.0,59848.0,0.005]
[1724260042976,1.503832,59847.0,59846.0,0.0009053]
[1724260043216,1.95748803,59847.0,59846.0,0.0009053]
[1724260044389,1.96548803,59847.0,59846.0,0.0019053]
[1724260045388,1.775332,59847.0,59846.0,0.0019053]
[1724260045631,1.441147,59847.0,59846.0,0.0019053]
[1724260046092,1.441147,59847.0,59846.0,0.00230688]
[1724260046580,1.441147,59847.0,59846.0,0.0019053]
[1724260046818,1.449147,59847.0,59846.0,0.0029053]
[1724260048169,1.308647,59847.0,59846.0,0.0029053]
[1724260051275,2.28331998,59847.0,59846.0,0.0029053]
[1724260051500,2.30947362,59847.0,59846.0,0.0029053]
[1724260052196,2.30947362,59847.0,59838.0,0.0009053]
[1724260052197,1.647035,59839.0,59838.0,0.0009053]
[1724260052434,2.46162162,59839.0,59838.0,0.0009053]
[1724260052653,2.58462162,59839.0,59838.0,0.0009053]
[1724260053307,2.24839162,59839.0,59838.0,0.0009053]
[1724260053760,2.26239162,59839.0,59838.0,0.0009053]
[1724260053970,2.27639162,59839.0,59838.0,0.0009053]
[1724260055580,2.28405783,59839.0,59838.0,0.0009053]
[1724260056733,2.28365562,59839.0,59838.0,0.0009053]
[1724260057693,2.25750198,59839.0,59838.0,0.0009053]
[1724260065635,2.25850198,59839.0,59838.0,0.0009053]
[1724260065881,2.2601004,59839.0,59838.0,0.0009053]
[1724260066109,2.25750198,59839.0,59838.0,0.0009053]
[1724260066848,2.59173198,59839.0,59838.0,0.0009053]
[1724260067081,2.25850198,59839.0,59838.0,0.0009053]
[1724260067317,2.28466184,59839.0,59838.0,0.0009053]
[1724260067561,2.28366184,59839.0,59838.0,0.0009053]
[1724260067868,2.22750198,59839.0,59838.0,0.0009053]
[1724260070225,2.22950198,59839.0,59838.0,0.0009053]
[1724260070448,2.22750198,59839.0,59838.0,0.0009053]
[1724260073537,2.25366114,59839.0,59838.0,0.0009053]
[1724260077353,2.25625956,59839.0,59838.0,0.0009053]
[1724260078442,2.25366114,59839.0,59838.0,0.0009053]
[1724260078847,2.25625956,59839.0,59838.0,0.0009053]
[1724260080597,2.25366114,59839.0,59838.0,0.0009053]
[1724260081271,2.25448414,59839.0,59838.0,0.0009053]
[1724260081753,2.25708256,59839.0,59838.0,0.0009053]
[1724260082193,2.25448414,59839.0,59838.0,0.0009053]
[1724260086169,2.17188414,59839.0,59838.0,0.0009053]
[1724260086385,2.11148414,59839.0,59838.0,0.0009053]
[1724260087903,0.52592495,59839.0,59838.0,0.0805053]
[1724260088122,0.52592495,59839.0,59838.0,0.0009053]
[1724260088344,1.63295043,59839.0,59838.0,0.0009053]
[1724260088796,2.11718341,59839.0,59838.0,0.0009053]
[1724260089036,2.11318341,59839.0,59838.0,0.0009053]
[1724260089436,2.14618341,59839.0,59838.0,0.0009053]
[1724260089699,2.24618341,59839.0,59838.0,0.0009053]
[1724260090380,2.24718341,59839.0,59838.0,0.0009053]
[1724260090601,2.24718341,59839.0,59831.0,0.0011053]
[1724260090602,1.79241,59832.0,59831.0,0.0011053]
[1724260090819,2.12427214,59832.0,59831.0,0.0011053]
[1724260091082,2.24727214,59832.0,59831.0,0.0011053]
[1724260091784,2.25927214,59832.0,59831.0,0.0011053]
[1724260092017,2.25917214,59832.0,59831.0,0.0011053]
[1724260092472,2.27117214,59832.0,59831.0,0.0011053]
[1724260094085,2.27905196,59832.0,59831.0,0.0011053]
[1724260099225,2.13735196,59832.0,59831.0,0.0011053]
[1724260101489,2.27785196,59832.0,59831.0,0.0011053]
[1724260101717,2.13735196,59832.0,59831.0,0.0011053]
[1724260101991,1.63907998,59832.0,59831.0,0.0011053]
[1724260102217,1.32787998,59832.0,59831.0,0.0011053]
[1724260102442,1.32787998,59832.0,59831.0,0.0775053]
[1724260102443,0.525303,59832.0,59831.0,0.0775053]
[1724260102657,0.525303,59832.0,59831.0,0.1398053]
[1724260103105,0.525303,59832.0,59831.0,0.15856603]
[1724260103812,0.513303,59832.0,59831.0,0.15856603]
[1724260104147,0.501303,59832.0,59831.0,0.15856603]
[1724260104386,0.503303,59832.0,59831.0,0.15856603]
[1724260104638,0.171034,59832.0,59831.0,0.15856603]
[1724260104862,0.171034,59832.0,59831.0,0.49324161]
[1724260104863,0.004,59832.0,59831.0,0.49324161]
[1724260105090,0.004,59832.0,59831.0,0.66037861]
[1724260105787,0.004,59832.0,59831.0,0.15896761]
[1724260106926,0.004,59832.0,59831.0,0.32610461]
[1724260107187,0.004,59832.0,59831.0,0.66037861]
[1724260107409,0.004,59832.0,59831.0,0.32610461]
[1724260110916,0.004,59832.0,59831.0,0.66037861]
[1724260112050,0.004,59832.0,59831.0,0.32610461]
[1724260113249,0.004,59832.0,59831.0,0.02026761]
[1724260113501,0.002,59832.0,59831.0,0.02026761]
[1724260113751,0.002,59832.0,59831.0,0.02226761]
[1724260113981,0.16713,59834.0,59833.0,0.00040158]
[1724260114423,0.16713,59834.0,59833.0,0.01915085]
[1724260115091,0.16713,59834.0,59833.0,0.02015085]
[1724260115310,0.16713,59834.0,59833.0,0.02215085]
[1724260116274,0.167126,59835.0,59834.0,0.00040158]
[1724260116741,0.167126,59835.0,59834.0,0.01914512]
[1724260117431,0.000823,59839.0,59838.0,0.07610158]
[1724260117889,0.000823,59839.0,59838.0,0.09482219]
[1724260118795,0.004823,59839.0,59838.0,0.26193919]
[1724260120014,0.008823,59839.0,59838.0,0.26193919]
[1724260120469,0.008823,59839.0,59838.0,0.09482219]
[1724260121629,0.008823,59839.0,59838.0,0.26193919]
[1724260122105,0.008823,59839.0,59838.0,0.59617419]
[1724260122330,0.008823,59839.0,59838.0,0.82247717]
[1724260123466,0.008823,59839.0,59838.0,1.15671217]
[1724260124620,0.008823,59839.0,59838.0,1.49094717]
[1724260125319,0.008823,59839.0,59838.0,1.15671217]
[1724260126624,0.008823,59839.0,59838.0,0.42594217]
[1724260126836,0.008823,59839.0,59838.0,0.25882517]
[1724260127603,0.175938,59839.0,59838.0,0.01912219]
[1724260128080,0.510168,59839.0,59838.0,0.01912219]
[1724260128325,0.844398,59839.0,59838.0,0.01912219]
[1724260128551,1.632628,59839.0,59838.0,0.01872061]
[1724260128784,0.835645,59834.0,59833.0,0.00040158]
[1724260129011,1.169903,59834.0,59833.0,0.00040158]
[1724260129242,1.251903,59834.0,59833.0,0.00040158]
[1724260129897,0.835672,59832.0,59831.0,0.0011053]
[1724260130395,1.334641,59832.0,59831.0,0.0011053]
[1724260130610,1.434641,59832.0,59831.0,0.0011053]
[1724260130843,1.76891,59832.0,59831.0,0.0011053]
[1724260131311,1.76891,59832.0,59831.0,0.0051053]
[1724260131536,1.93291298,59832.0,59831.0,0.0031053]
[1724260132531,1.93291298,59832.0,59831.0,0.0011053]
[1724260132779,1.94044446,59832.0,59831.0,0.0011053]
[1724260133018,1.95844446,59832.0,59831.0,0.0011053]
[1724260133236,1.94944446,59832.0,59831.0,0.0011053]
[1724260133478,1.94044446,59832.0,59831.0,0.0011053]
[1724260133695,1.96444446,59832.0,59831.0,0.0011053]
[1724260135844,1.95244446,59832.0,59831.0,0.0011053]